fUSD/lending_fUSD_20250211
["ID","MTS","AMOUNT","RATE_DAILY","PERIOD"]
[352787784,1739311855434,-500.0,0.00017258,2]
[352787785,1739311855444,-500.0,0.00017395,2]
[352787786,1739311855454,-28529.90082575,0.00017396,3]
[352787787,1739311855466,-14886.15079869,0.00017396,3]
[352787788,1739311855477,-88460.37098647,0.00017396,3]
[352787789,1739311855488,-118186.06346849,0.00017396,3]
[352787790,1739311855499,-396.21290622,0.00017396,3]
[352787791,1739311855510,-2288.91045091,0.00017396,3]
[352787792,1739311855522,-721.24525557,0.00017396,3]
[352787793,1739311855533,-463.95250134,0.00017396,3]
[352787794,1739311855544,-992.78414107,0.00017396,3]
[352787795,1739311855555,-2467.30921759,0.00017396,3]
[352787796,1739311855571,-4282.42235308,0.00017396,3]
[352787797,1739311855582,-1209.0132002,0.00017396,3]
[352787798,1739311855593,-677.959212,0.00017396,3]
[352787799,1739311855603,-530.68426889,0.00017396,3]
[352787800,1739311855614,-309.39897783,0.00017396,3]
[352787801,1739311855630,-35684.50328488,0.00017396,3]
[352787802,1739311855640,-96496.00000001,0.00017396,3]
[352787803,1739311855979,-723.1949,8.973e-05,2]
[352787804,1739311855989,-500.0,0.00016573,2]
[352787805,1739311855999,-500.0,0.00016574,2]
[352787806,1739311856008,-500.0,0.00016574,2]
[352787807,1739311856018,-500.0,0.00016574,2]
[352787808,1739311856027,-500.0,0.0001671,2]
[352787809,1739311856037,-500.0,0.00016711,2]
[352787810,1739311856047,-500.0,0.00016711,2]
[352787811,1739311856056,-500.0,0.00016711,2]
[352787812,1739311856065,-500.0,0.00016848,2]
[352787813,1739311856074,-500.0,0.00016848,2]
[352787814,1739311856084,-500.0,0.00016848,2]
[352787815,1739311856093,-500.0,0.00016985,2]
[352787816,1739311856103,-500.0,0.00016985,2]
[352787817,1739311856112,-500.0,0.00017122,2]
[352787818,1739311856121,-256.33324858,0.00017396,3]
[352787819,1739311856132,-454.50620351,0.00017396,3]
[352787820,1739311856143,-1017.6830018,0.00017396,3]
[352787821,1739311856154,-1189.88173211,0.00017396,3]
[352787822,1739311856165,-446.51173508,0.00017396,3]
[352787823,1739311856176,-778.13083121,0.00017396,3]
[352787824,1739311856191,-744.42503183,0.00017396,3]
[352787825,1739311856207,-500.0,0.00016574,2]
[352787826,1739311856217,-7199.92052775,0.00017396,3]
[352787827,1739311856232,-500.0,0.00017122,2]
[352787828,1739311856242,-64731.94605226,0.00017396,3]
[352787829,1739311856252,-823.36,0.00017396,2]
[352787830,1739311856264,-169.85,0.00017396,2]
[352787831,1739311856275,-693.33,0.00017396,2]
[352787832,1739311856285,-641.19,0.00017396,2]
[352787833,1739311856295,-500.0,0.00017396,2]
[352787834,1739311856306,-500.0,0.00017396,2]
[352787835,1739311856316,-500.0,0.00017396,2]
[352787836,1739311856326,-500.0,0.00017396,2]
[352787837,1739311856336,-500.0,0.00017396,2]
[352787838,1739311856346,-500.0,0.00017396,2]
[352787839,1739311856357,-163.92,0.00017396,2]
[352787840,1739311856368,-500.0,0.00017396,2]
[352787841,1739311856378,-500.0,0.00017396,2]
[352787842,1739311856388,-500.0,0.00017396,2]
[352787843,1739311856398,-500.0,0.00017396,2]
[352787844,1739311856407,-500.0,0.00017396,2]
[352787845,1739311856416,-500.0,0.00017396,2]
[352787846,1739311856425,-500.0,0.00017396,2]
[352787847,1739311856434,-500.0,0.00017396,2]
[352787848,1739311856444,-500.0,0.00017396,2]
[352787849,1739311856454,-500.0,0.00017396,2]
[352787850,1739311856464,-1028.25,0.00017396,2]
[352787851,1739311856474,-500.0,0.00017396,2]
[352787852,1739311856483,-500.0,0.00017396,2]
[352787853,1739311856492,-500.0,0.00017396,2]
[352787854,1739311856502,-500.0,0.00017396,2]
[352787855,1739311856511,-1126.67,0.00017396,2]
[352787856,1739311856521,-540.56,0.00017396,2]
[352787857,1739311856530,-500.0,0.00017396,2]
[352787858,1739311856539,-500.0,0.00017396,2]
[352787859,1739311856548,-500.0,0.00017396,2]
[352787860,1739311856558,-495.22,0.00017396,2]
[352787861,1739311856568,-530.94,0.00017396,2]
[352787862,1739311856577,-629.24,0.00017396,2]
[352787863,1739311856586,-500.0,0.00017396,2]
[352787864,1739311856595,-500.0,0.00017396,2]
[352787865,1739311856605,-462.47520103,0.00017396,2]
[352787866,1739311856615,-500.0,0.00017396,2]
[352787867,1739311856624,-500.0,0.00017396,2]
[352787868,1739311856634,-818.18,0.00017396,2]
[352787869,1739311856643,-3121.69,0.00017396,2]
[352787870,1739311856654,-464.67196683,0.00017396,2]
[352787871,1739311856664,-549.07,0.00017396,2]
[352787872,1739311856673,-500.0,0.00017396,2]
[352787873,1739311856682,-500.0,0.00017396,2]
[352787874,1739311856691,-500.0,0.00017396,2]
[352787875,1739311856701,-500.0,0.00017396,2]
[352787876,1739311856711,-500.0,0.00017396,2]
[352787877,1739311856721,-500.0,0.00017396,2]
[352787878,1739311856731,-500.0,0.00017396,2]
[352787879,1739311856741,-500.0,0.00017396,2]
[352787880,1739311856750,-595.23,0.00017396,2]
[352787881,1739311856760,-500.0,0.00017396,2]
[352787882,1739311856770,-2122.0,0.00017419,2]
[352787883,1739311856779,-150.0,0.0001742,2]
[352787884,1739311856788,-150.0,0.0001744,2]
[352787885,1739311856797,-150.0,0.00017461,2]
[352787886,1739311856806,-17795.0,0.00017463,7]
[352787887,1739311856815,-150.0,0.00017492,2]
[352787888,1739311856825,-150.0,0.00017502,2]
[352787889,1739311856834,-888.30748538,0.00017505,2]
[352787890,1739311856843,-1750.935558,0.00017521,2]
[352787891,1739311856852,-8025.7435784,0.00017525,2]
[352787892,1739311856861,-500.0,0.00017532,2]
[352787893,1739311856871,-549.116092,0.00017532,2]
[352787894,1739311856880,-500.0,0.00017532,2]
[352787895,1739311856890,-500.0,0.00017532,2]
[352787896,1739311856900,-454.809793,0.00017532,2]
[352787897,1739311856909,-500.0,0.00017532,2]
[352787898,1739311856919,-500.0,0.00017532,2]
[352787899,1739311856928,-1855.37,0.00017532,2]
[352787900,1739311856937,-588.57,0.00017532,2]
[352787901,1739311856946,-530.37,0.00017532,2]
[352787902,1739311856955,-500.0,0.00017532,2]
[352787903,1739311856965,-867.04,0.00017532,2]
[352787904,1739311856975,-500.0,0.00017532,2]
[352787905,1739311856985,-1573.73,0.00017532,2]
[352787906,1739311856995,-547.07,0.00017532,2]
[352787907,1739311857004,-723.86,0.00017532,2]
[352787908,1739311857014,-500.0,0.00017532,2]
[352787909,1739311857023,-590.55,0.00017532,2]
[352787910,1739311857032,-500.0,0.00017532,2]
[352787911,1739311857042,-500.0,0.00017532,2]
[352787912,1739311857052,-500.0,0.00017532,2]
[352787913,1739311857061,-500.0,0.00017532,2]
[352787914,1739311857070,-500.0,0.00017532,2]
[352787915,1739311857079,-500.0,0.00017532,2]
[352787916,1739311857089,-750.49,0.00017532,2]
[352787917,1739311857099,-500.0,0.00017532,2]
[352787918,1739311857108,-969.18,0.00017532,2]
[352787919,1739311857117,-500.0,0.00017532,2]
[352787920,1739311857127,-500.0,0.00017532,2]
[352787921,1739311857136,-500.0,0.00017532,2]
[352787922,1739311857145,-232.07,0.00017532,2]
[352787923,1739311857154,-940.29,0.00017532,2]
[352787924,1739311857164,-500.0,0.00017532,2]
[352787925,1739311857174,-500.0,0.00017532,2]
[352787926,1739311857188,-500.0,0.00017532,2]
[352787927,1739311857198,-500.0,0.00017532,2]
[352787928,1739311857207,-500.0,0.00017532,2]
[352787929,1739311857220,-1110.94,0.00017532,2]
[352787930,1739311857230,-676.08,0.00017532,2]
[352787931,1739311857241,-524.5,0.00017532,2]
[352787932,1739311857251,-500.0,0.00017532,2]
[352787933,1739311857263,-500.0,0.00017532,2]
[352787934,1739311857274,-500.0,0.00017532,2]
[352787935,1739311857285,-589.9,0.00017532,2]
[352787936,1739311857295,-876.39,0.00017532,2]
[352787937,1739311857306,-500.0,0.00017532,2]
[352787938,1739311857316,-500.0,0.00017532,2]
[352787939,1739311857325,-823.36,0.00017533,2]
[352787940,1739311857334,-693.33,0.00017533,2]
[352787941,1739311857344,-500.0,0.00017533,2]
[352787942,1739311857354,-588.67,0.00017533,2]
[352787943,1739311857364,-500.0,0.00017533,2]
[352787944,1739311857373,-500.0,0.00017533,2]
[352787945,1739311857385,-500.0,0.00017533,2]
[352787946,1739311857395,-500.0,0.00017533,2]
[352787947,1739311857406,-500.0,0.00017533,2]
[352787948,1739311857417,-500.0,0.00017533,2]
[352787949,1739311857429,-500.0,0.00017533,2]
[352787950,1739311857439,-500.0,0.00017533,2]
[352787951,1739311857450,-500.0,0.00017533,2]
[352787952,1739311857460,-500.0,0.00017533,2]
[352787953,1739311857470,-500.0,0.00017533,2]
[352787954,1739311857480,-500.0,0.00017533,2]
[352787955,1739311857492,-500.0,0.00017533,2]
[352787956,1739311857502,-500.0,0.00017533,2]
[352787957,1739311857512,-1028.25,0.00017533,2]
[352787958,1739311857522,-500.0,0.00017533,2]
[352787959,1739311857531,-500.0,0.00017533,2]
[352787960,1739311857540,-500.0,0.00017533,2]
[352787961,1739311857551,-500.0,0.00017533,2]
[352787962,1739311857561,-1126.67,0.00017533,2]
[352787963,1739311857570,-540.56,0.00017533,2]
[352787964,1739311857580,-500.0,0.00017533,2]
[352787965,1739311857590,-500.0,0.00017533,2]
[352787966,1739311857599,-500.0,0.00017533,2]
[352787967,1739311857609,-530.94,0.00017533,2]
[352787968,1739311857619,-500.0,0.00017533,2]
[352787969,1739311857629,-500.0,0.00017533,2]
[352787970,1739311857639,-500.0,0.00017533,2]
[352787971,1739311857648,-500.0,0.00017533,2]
[352787972,1739311857657,-818.18,0.00017533,2]
[352787973,1739311857667,-3121.69,0.00017533,2]
[352787974,1739311857677,-549.07,0.00017533,2]
[352787975,1739311857687,-500.0,0.00017533,2]
[352787976,1739311857696,-185.34,0.00017533,2]
[352787977,1739311857706,-500.0,0.00017533,2]
[352787978,1739311857716,-500.0,0.00017533,2]
[352787979,1739311857726,-500.0,0.00017533,2]
[352787980,1739311857736,-500.0,0.00017533,2]
[352787981,1739311857746,-500.0,0.00017533,2]
[352787982,1739311857756,-500.0,0.00017533,2]
[352787983,1739311857765,-595.23,0.00017533,2]
[352787984,1739311857775,-500.0,0.00017533,2]
[352787985,1739311857785,-150.0,0.00017543,2]
[352787986,1739311857795,-150.0,0.00017543,2]
[352787987,1739311857804,-1000.0,0.00017569,2]
[352787988,1739311857814,-150.0,0.00017585,2]
[352787989,1739311857826,-240.01,0.00017609,2]
[352787990,1739311857837,-4024.01895553,0.00017616,2]
[352787991,1739311857847,-150.0,0.00017626,2]
[352787992,1739311857857,-888.30748538,0.00017635,2]
[352787993,1739311857866,-518.59443564,0.00017635,2]
[352787994,1739311857877,-324.33779202,0.00017635,2]
[352787995,1739311857888,-500.0,0.00017635,2]
[352787996,1739311857898,-517.50544384,0.00017635,2]
[352787997,1739311857909,-150.0,0.00017647,2]
[352787998,1739311857919,-150.0,0.00017647,2]
[352787999,1739311857929,-150.0,0.00017647,2]
[352788000,1739311857938,-6930.93,0.00017663,7]
[352788001,1739311857948,-6930.93,0.00017663,7]
[352788002,1739311857958,-150.0,0.00017667,2]
[352788003,1739311857968,-500.0,0.00017669,2]
[352788004,1739311857978,-549.116092,0.00017669,2]
[352788005,1739311857988,-500.0,0.00017669,2]
[352788006,1739311857997,-500.0,0.00017669,2]
[352788007,1739311858007,-454.809793,0.00017669,2]
[352788008,1739311858016,-500.0,0.00017669,2]
[352788009,1739311858026,-500.0,0.00017669,2]
[352788010,1739311858036,-1855.37,0.00017669,2]
[352788011,1739311858046,-588.57,0.00017669,2]
[352788012,1739311858056,-530.37,0.00017669,2]
[352788013,1739311858067,-500.0,0.00017669,2]
[352788014,1739311858077,-867.04,0.00017669,2]
[352788015,1739311858087,-500.0,0.00017669,2]
[352788016,1739311858097,-1573.73,0.00017669,2]
[352788017,1739311858107,-547.07,0.00017669,2]
[352788018,1739311858116,-723.86,0.00017669,2]
[352788019,1739311858126,-500.0,0.00017669,2]
[352788020,1739311858135,-590.55,0.00017669,2]
[352788021,1739311858145,-500.0,0.00017669,2]
[352788022,1739311858155,-500.0,0.00017669,2]
[352788023,1739311858164,-500.0,0.00017669,2]
[352788024,1739311858174,-500.0,0.00017669,2]
[352788025,1739311858188,-500.0,0.00017669,2]
[352788026,1739311858199,-500.0,0.00017669,2]
[352788027,1739311858208,-750.49,0.00017669,2]
[352788028,1739311858218,-500.0,0.00017669,2]
[352788029,1739311858228,-969.18,0.00017669,2]
[352788030,1739311858239,-500.0,0.00017669,2]
[352788031,1739311858250,-500.0,0.00017669,2]
[352788032,1739311858261,-500.0,0.00017669,2]
[352788033,1739311858272,-940.29,0.00017669,2]
[352788034,1739311858282,-500.0,0.00017669,2]
[352788035,1739311858291,-500.0,0.00017669,2]
[352788036,1739311858304,-500.0,0.00017669,2]
[352788037,1739311858315,-500.0,0.00017669,2]
[352788038,1739311858326,-500.0,0.00017669,2]
[352788039,1739311858336,-1110.94,0.00017669,2]
[352788040,1739311858347,-676.08,0.00017669,2]
[352788041,1739311858357,-524.5,0.00017669,2]
[352788042,1739311858368,-500.0,0.00017669,2]
[352788043,1739311858379,-500.0,0.00017669,2]
[352788044,1739311858388,-500.0,0.00017669,2]
[352788045,1739311858398,-589.9,0.00017669,2]
[352788046,1739311858408,-876.39,0.00017669,2]
[352788047,1739311858418,-500.0,0.00017669,2]
[352788048,1739311858428,-500.0,0.00017669,2]
[352788049,1739311858437,-1769.4970392,0.0001767,3]
[352788050,1739311858448,-823.36,0.0001767,2]
[352788051,1739311858458,-693.33,0.0001767,2]
[352788052,1739311858468,-416.82,0.0001767,2]
[352788053,1739311858481,-500.0,0.0001767,2]
[352788054,1739311858491,-500.0,0.0001767,2]
[352788055,1739311858501,-515.23170275,0.0001767,2]
[352788056,1739311858512,-367.31377741,0.0001767,2]
[352788057,1739311858522,-500.0,0.0001767,2]
[352788058,1739311858533,-648.79,0.0001767,2]
[352788059,1739311858543,-500.0,0.0001767,2]
[352788060,1739311858553,-500.0,0.0001767,2]
[352788061,1739311858564,-500.0,0.0001767,2]
[352788062,1739311858574,-184.26,0.0001767,2]
[352788063,1739311858585,-500.0,0.0001767,2]
[352788064,1739311858595,-500.0,0.0001767,2]
[352788065,1739311858605,-500.0,0.0001767,2]
[352788066,1739311858615,-500.0,0.0001767,2]
[352788067,1739311858626,-1028.25,0.0001767,2]
[352788068,1739311858636,-500.0,0.0001767,2]
[352788069,1739311858645,-500.0,0.0001767,2]
[352788070,1739311858656,-500.0,0.0001767,2]
[352788071,1739311858665,-500.0,0.0001767,2]
[352788072,1739311858675,-1126.67,0.0001767,2]
[352788073,1739311858685,-540.56,0.0001767,2]
[352788074,1739311858695,-500.0,0.0001767,2]
[352788075,1739311858705,-500.0,0.0001767,2]
[352788076,1739311858715,-500.0,0.0001767,2]
[352788077,1739311858725,-530.94,0.0001767,2]
[352788078,1739311858735,-500.0,0.0001767,2]
[352788079,1739311858745,-500.0,0.0001767,2]
[352788080,1739311858756,-500.0,0.0001767,2]
[352788081,1739311858766,-500.0,0.0001767,2]
[352788082,1739311858776,-818.18,0.0001767,2]
[352788083,1739311858786,-3121.69,0.0001767,2]
[352788084,1739311858795,-549.07,0.0001767,2]
[352788085,1739311858805,-500.0,0.0001767,2]
[352788086,1739311858814,-500.0,0.0001767,2]
[352788087,1739311858825,-500.0,0.0001767,2]
[352788088,1739311858835,-500.0,0.0001767,2]
[352788089,1739311858844,-500.0,0.0001767,2]
[352788090,1739311858855,-500.0,0.0001767,2]
[352788091,1739311858867,-500.0,0.0001767,2]
[352788092,1739311858878,-595.23,0.0001767,2]
[352788093,1739311858889,-500.0,0.0001767,2]
[352788094,1739311858902,-823.04,0.00017677,2]
[352788095,1739311858914,-150.0,0.00017708,2]
[352788096,1739311858926,-150.0,0.0001775,2]
[352788097,1739311858937,-150.0,0.0001775,2]
[352788098,1739311858948,-888.30748538,0.00017765,2]
[352788099,1739311858959,-150.0,0.00017791,2]
[352788100,1739311858971,-197.58354588,0.000178,2]
[352788101,1739311858980,-500.0,0.000178,6]
[352788102,1739311858991,-150.0,0.00017801,2]
[352788103,1739311859001,-500.0,0.00017806,2]
[352788104,1739311859011,-549.116092,0.00017806,2]
[352788105,1739311859022,-343.44042725,0.00017806,2]
[352788106,1739311859031,-500.0,0.00017806,2]
[352788107,1739311859041,-454.809793,0.00017806,2]
[352788108,1739311859051,-500.0,0.00017806,2]
[352788109,1739311859061,-500.0,0.00017806,2]
[352788110,1739311859071,-1855.37,0.00017806,2]
[352788111,1739311859082,-588.57,0.00017806,2]
[352788112,1739311859091,-530.37,0.00017806,2]
[352788113,1739311859101,-500.0,0.00017806,2]
[352788114,1739311859112,-867.04,0.00017806,2]
[352788115,1739311859123,-500.0,0.00017806,2]
[352788116,1739311859133,-1573.73,0.00017806,2]
[352788117,1739311859143,-547.07,0.00017806,2]
[352788118,1739311859153,-723.86,0.00017806,2]
[352788119,1739311859163,-500.0,0.00017806,2]
[352788120,1739311859173,-590.55,0.00017806,2]
[352788121,1739311859188,-500.0,0.00017806,2]
[352788122,1739311859327,-500.0,0.00017806,2]
[352788123,1739311859345,-500.0,0.00017806,2]
[352788124,1739311859355,-500.0,0.00017806,2]
[352788125,1739311859365,-500.0,0.00017806,2]
[352788126,1739311859375,-500.0,0.00017806,2]
[352788127,1739311859384,-750.49,0.00017806,2]
[352788128,1739311859393,-434.3201369,0.00017806,2]
[352788129,1739311859403,-969.18,0.00017806,2]
[352788130,1739311859412,-500.0,0.00017806,2]
[352788131,1739311859423,-500.0,0.00017806,2]
[352788132,1739311859432,-500.0,0.00017806,2]
[352788133,1739311859441,-940.29,0.00017806,2]
[352788134,1739311859452,-500.0,0.00017806,2]
[352788135,1739311859461,-500.0,0.00017806,2]
[352788136,1739311859470,-500.0,0.00017806,2]
[352788137,1739311859480,-500.0,0.00017806,2]
[352788138,1739311859489,-500.0,0.00017806,2]
[352788139,1739311859498,-1110.94,0.00017806,2]
[352788140,1739311859507,-676.08,0.00017806,2]
[352788141,1739311859517,-524.5,0.00017806,2]
[352788142,1739311859526,-500.0,0.00017806,2]
[352788143,1739311859535,-500.0,0.00017806,2]
[352788144,1739311859545,-500.0,0.00017806,2]
[352788145,1739311859554,-589.9,0.00017806,2]
[352788146,1739311859565,-876.39,0.00017806,2]
[352788147,1739311859575,-500.0,0.00017806,2]
[352788148,1739311859585,-500.0,0.00017806,2]
[352788149,1739311859595,-823.36,0.00017807,2]
[352788150,1739311859604,-693.33,0.00017807,2]
[352788151,1739311859614,-500.0,0.00017807,2]
[352788152,1739311859624,-380.86,0.00017807,2]
[352788153,1739311859634,-500.0,0.00017807,2]
[352788154,1739311859644,-500.0,0.00017807,2]
[352788155,1739311859654,-500.0,0.00017807,2]
[352788156,1739311859664,-550.36879953,0.00017807,2]
[352788157,1739311859674,-500.0,0.00017807,2]
[352788158,1739311859683,-500.0,0.00017807,2]
[352788159,1739311859693,-500.0,0.00017807,2]
[352788160,1739311859707,-500.0,0.00017807,2]
[352788161,1739311859716,-1028.25,0.00017807,2]
[352788162,1739311859725,-500.0,0.00017807,2]
[352788163,1739311859734,-500.0,0.00017807,2]
[352788164,1739311859744,-500.0,0.00017807,2]
[352788165,1739311859753,-563.51749667,0.00017807,2]
[352788166,1739311859763,-1126.67,0.00017807,2]
[352788167,1739311859772,-540.56,0.00017807,2]
[352788168,1739311859781,-500.0,0.00017807,2]
[352788169,1739311859790,-500.0,0.00017807,2]
[352788170,1739311859800,-500.0,0.00017807,2]
[352788171,1739311859810,-530.94,0.00017807,2]
[352788172,1739311859819,-500.0,0.00017807,2]
[352788173,1739311859828,-500.0,0.00017807,2]
[352788174,1739311859837,-500.0,0.00017807,2]
[352788175,1739311859847,-500.0,0.00017807,2]
[352788176,1739311859856,-818.18,0.00017807,2]
[352788177,1739311859865,-3121.69,0.00017807,2]
[352788178,1739311859875,-549.07,0.00017807,2]
[352788179,1739311859883,-500.0,0.00017807,2]
[352788180,1739311859892,-500.0,0.00017807,2]
[352788181,1739311859902,-603.95400636,0.00017807,2]
[352788182,1739311859911,-500.0,0.00017807,2]
[352788183,1739311859919,-500.0,0.00017807,2]
[352788184,1739311859928,-500.0,0.00017807,2]
[352788185,1739311859937,-500.0,0.00017807,2]
[352788186,1739311859946,-595.23,0.00017807,2]
[352788187,1739311859955,-500.0,0.00017807,2]
[352788188,1739311859965,-300.0,0.0001783,2]
[352788189,1739311859974,-150.0,0.00017832,2]
[352788190,1739311859983,-150.0,0.00017853,2]
[352788191,1739311859995,-150.0,0.00017874,2]
[352788192,1739311860005,-888.30748538,0.00017894,2]
[352788193,1739311860014,-700.0,0.000179,6]
[352788194,1739311860024,-1333.86,0.00017903,2]
[352788195,1739311860034,-500.0,0.00017904,2]
[352788196,1739311860043,-800.0,0.00017904,2]
[352788197,1739311860054,-900.0,0.00017904,2]
[352788198,1739311860064,-150.0,0.00017915,2]
[352788199,1739311860073,-8025.7435784,0.00017921,2]
[352788200,1739311860083,-300.0,0.00017936,2]
[352788201,1739311860092,-6930.93,0.00017937,7]
[352788202,1739311860101,-6930.93,0.00017937,7]
[352788203,1739311860112,-500.0,0.00017943,2]
[352788204,1739311860123,-549.116092,0.00017943,2]
[352788205,1739311860133,-500.0,0.00017943,2]
[352788206,1739311860144,-454.809793,0.00017943,2]
[352788207,1739311860154,-500.0,0.00017943,2]
[352788208,1739311860163,-500.0,0.00017943,2]
[352788209,1739311860172,-1855.37,0.00017943,2]
[352788210,1739311860182,-500.0,0.00017943,2]
[352788211,1739311860193,-588.57,0.00017943,2]
[352788212,1739311860204,-530.37,0.00017943,2]
[352788213,1739311860214,-500.0,0.00017943,2]
[352788214,1739311860224,-867.04,0.00017943,2]
[352788215,1739311860233,-500.0,0.00017943,2]
[352788216,1739311860242,-1573.73,0.00017943,2]
[352788217,1739311860252,-547.07,0.00017943,2]
[352788218,1739311860261,-723.86,0.00017943,2]
[352788219,1739311860271,-500.0,0.00017943,2]
[352788220,1739311860280,-590.55,0.00017943,2]
[352788221,1739311860290,-500.0,0.00017943,2]
[352788222,1739311860299,-500.0,0.00017943,2]
[352788223,1739311860308,-500.0,0.00017943,2]
[352788224,1739311860318,-500.0,0.00017943,2]
[352788225,1739311860326,-500.0,0.00017943,2]
[352788226,1739311860336,-500.0,0.00017943,2]
[352788227,1739311860345,-750.49,0.00017943,2]
[352788228,1739311860359,-300.0,0.00017943,2]
[352788229,1739311860370,-969.18,0.00017943,2]
[352788230,1739311860380,-500.0,0.00017943,2]
[352788231,1739311860391,-500.0,0.00017943,2]
[352788232,1739311860401,-245.81,0.00017943,2]
[352788233,1739311860410,-940.29,0.00017943,2]
[352788234,1739311860419,-500.0,0.00017943,2]
[352788235,1739311860429,-440.1,0.00017943,2]
[352788236,1739311860441,-500.0,0.00017943,2]
[352788237,1739311860451,-500.0,0.00017943,2]
[352788238,1739311860460,-500.0,0.00017943,2]
[352788239,1739311860471,-1110.94,0.00017943,2]
[352788240,1739311860481,-676.08,0.00017943,2]
[352788241,1739311860491,-524.5,0.00017943,2]
[352788242,1739311860500,-328.21041143,0.00017943,2]
[352788243,1739311860517,-171.78958857,0.00017943,2]
[352788244,1739311860527,-292.43950348,0.00017943,2]
[352788245,1739311860537,-500.0,0.00017943,2]
[352788246,1739311860547,-589.9,0.00017943,2]
[352788247,1739311860558,-876.39,0.00017943,2]
[352788248,1739311860568,-500.0,0.00017943,2]
[352788249,1739311860578,-500.0,0.00017943,2]
[352788250,1739311860590,-823.36,0.00017944,2]
[352788251,1739311860599,-693.33,0.00017944,2]
[352788252,1739311860609,-500.0,0.00017944,2]
[352788253,1739311860619,-500.0,0.00017944,2]
[352788254,1739311860628,-500.0,0.00017944,2]
[352788255,1739311860638,-372.91,0.00017944,2]
[352788256,1739311860647,-218.89,0.00017944,2]
[352788257,1739311860659,-500.0,0.00017944,2]
[352788258,1739311860669,-359.99090295,0.00017944,2]
[352788259,1739311860869,-500.0,0.00016574,2]
[352788260,1739311860878,-500.0,0.00016711,2]
[352788261,1739311860887,-97.67821731,0.00016847,2]
[352788262,1739311860907,-402.32178269,0.00016847,2]
[352788263,1739311860917,-107.68761403,0.00016848,2]
[352788264,1739311860928,-392.31238597,0.00016848,2]
[352788265,1739311860938,-357.86988403,0.00016984,2]
[352788266,1739311860950,-142.13011597,0.00016984,2]
[352788267,1739311860959,-500.0,0.00017121,2]
[352788268,1739311860968,-500.0,0.00017258,2]
[352788269,1739311860977,-500.0,0.00017259,2]
[352788270,1739311860986,-500.0,0.00017259,2]
[352788271,1739311860995,-500.0,0.00017395,2]
[352788272,1739311861005,-500.0,0.00017396,2]
[352788273,1739311861014,-386.94,0.00017396,2]
[352788274,1739311861024,-500.0,0.00017532,2]
[352788275,1739311861033,-500.0,0.00017533,2]
[352788276,1739311861042,-500.0,0.00017669,2]
[352788277,1739311861054,-500.0,0.0001767,2]
[352788278,1739311861075,-500.0,0.00017806,2]
[352788279,1739311861085,-500.0,0.00017807,2]
[352788280,1739311861094,-500.0,0.00017943,2]
[352788281,1739311861104,-140.00909705,0.00017944,2]
[352788282,1739311861113,-1028.25,0.00017944,2]
[352788283,1739311861122,-500.0,0.00017944,2]